fUSD/lending_fUSD_20241231
["ID","MTS","AMOUNT","RATE_DAILY","PERIOD"]
[347322840,1735687847212,-500.0,0.00011287,2]
[347322841,1735687847220,-523.22189871,0.00011287,2]
[347322842,1735687847229,-1205.67,0.00011287,2]
[347322843,1735687847238,-923.0,0.00011287,2]
[347322844,1735687847247,-923.62,0.00011287,2]
[347322845,1735687847257,-1057.32,0.00011287,2]
[347322846,1735687847266,-536.22,0.00011287,2]
[347322847,1735687847276,-411.09862009,0.00011287,2]
[347322848,1735687847285,-500.0,0.00011287,2]
[347322849,1735687847294,-548.19,0.00011287,2]
[347322850,1735687847303,-1689.08,0.00011287,2]
[347322851,1735687847312,-500.0,0.00011287,2]
[347322852,1735687847321,-795.73,0.00011287,2]
[347322853,1735687847331,-1243.35,0.00011287,2]
[347322854,1735687847340,-1466.59,0.00011287,2]
[347322855,1735687847350,-500.0,0.00011287,2]
[347322856,1735687847359,-500.0,0.00011287,2]
[347322857,1735687847369,-2689.91,0.00011287,2]
[347322858,1735687847377,-500.0,0.00011287,2]
[347322859,1735687847387,-500.0,0.00011287,2]
[347322860,1735687847395,-500.0,0.00011287,2]
[347322861,1735687847405,-864.83,0.00011287,2]
[347322862,1735687847414,-500.0,0.00011287,2]
[347322863,1735687847424,-681.79,0.00011287,2]
[347322864,1735687847433,-500.0,0.00011287,2]
[347322865,1735687847442,-2167.42,0.00011287,2]
[347322866,1735687847451,-157.005029,0.00011287,2]
[347322867,1735687847460,-5621.97,0.00011287,2]
[347322868,1735687847470,-500.0,0.00011287,2]
[347322869,1735687847479,-500.0,0.00011287,2]
[347322870,1735687847488,-710.97,0.00011287,2]
[347322871,1735687847498,-1578.03,0.00011287,2]
[347322872,1735687847507,-500.0,0.00011287,2]
[347322873,1735687847516,-500.0,0.00011287,2]
[347322874,1735687847525,-500.0,0.00011287,2]
[347322875,1735687847534,-500.57,0.00011287,2]
[347322876,1735687847544,-500.0,0.00011287,2]
[347322877,1735687847553,-566.55,0.00011287,2]
[347322878,1735687847562,-1039.32,0.00011287,2]
[347322879,1735687847571,-500.0,0.00011287,2]
[347322880,1735687847580,-500.0,0.00011287,2]
[347322881,1735687847589,-3401.26,0.00011287,2]
[347322882,1735687847599,-1114.46,0.00011287,2]
[347322883,1735687847608,-500.0,0.00011287,2]
[347322884,1735687847617,-650.53,0.00011287,2]
[347322885,1735687847626,-500.0,0.00011287,2]
[347322886,1735687847635,-1590.52,0.00011287,2]
[347322887,1735687847645,-637.04,0.00011287,2]
[347322888,1735687847654,-500.0,0.00011287,2]
[347322889,1735687847663,-4741.41,0.00011287,2]
[347322890,1735687847675,-500.0,0.00011287,2]
[347322891,1735687847684,-748.13,0.00011287,2]
[347322892,1735687847693,-500.0,0.00011287,2]
[347322893,1735687847702,-979.49,0.00011287,2]
[347322894,1735687847712,-500.0,0.00011287,2]
[347322895,1735687847722,-2842.79,0.00011287,2]
[347322896,1735687847731,-500.0,0.00011287,2]
[347322897,1735687847740,-516.21,0.00011287,2]
[347322898,1735687847752,-500.0,0.00011287,2]
[347322899,1735687847761,-1199.97,0.00011287,2]
[347322900,1735687847770,-5378.88,0.00011287,2]
[347322901,1735687847779,-1839.3,0.00011287,2]
[347322902,1735687847788,-768.59,0.00011287,2]
[347322903,1735687847798,-1559.7,0.00011287,2]
[347322904,1735687847807,-500.0,0.00011287,2]
[347322905,1735687847817,-5977.01,0.00011287,2]
[347322906,1735687847826,-1128.56,0.00011287,2]
[347322907,1735687847835,-500.0,0.00011287,2]
[347322908,1735687847844,-500.0,0.00011287,2]
[347322909,1735687847853,-2873.05,0.00011287,2]
[347322910,1735687847862,-3744.09,0.00011287,2]
[347322911,1735687847872,-500.0,0.00011287,2]
[347322912,1735687847881,-500.0,0.00011287,2]
[347322913,1735687847891,-1146.99,0.00011287,2]
[347322914,1735687847900,-1679.88,0.00011287,2]
[347322915,1735687847909,-1469.67,0.00011287,2]
[347322916,1735687847918,-500.0,0.00011287,2]
[347322917,1735687847927,-500.0,0.00011287,2]
[347322918,1735687847937,-596.17,0.00011287,2]
[347322919,1735687847946,-500.0,0.00011287,2]
[347322920,1735687847955,-1434.49,0.00011287,2]
[347322921,1735687847965,-1180.35,0.00011287,2]
[347322922,1735687847976,-5963.23,0.00011287,2]
[347322923,1735687847986,-500.0,0.00011287,2]
[347322924,1735687847995,-1193.74,0.00011287,2]
[347322925,1735687848005,-812.78,0.00011287,2]
[347322926,1735687848015,-500.0,0.00011287,2]
[347322927,1735687848024,-500.0,0.00011287,2]
[347322928,1735687848033,-1847.78,0.00011287,2]
[347322929,1735687848042,-500.0,0.00011287,2]
[347322930,1735687848052,-610.91,0.00011287,2]
[347322931,1735687848061,-500.0,0.00011287,2]
[347322932,1735687848071,-3482.83,0.00011287,2]
[347322933,1735687848080,-637.0,0.00011287,2]
[347322934,1735687848090,-1793.63,0.00011287,2]
[347322935,1735687848099,-742.73,0.00011287,2]
[347322936,1735687848109,-3574.64,0.00011287,2]
[347322937,1735687848119,-500.0,0.00011287,2]
[347322938,1735687848129,-549.25,0.00011287,2]
[347322939,1735687848139,-500.0,0.00011287,2]
[347322940,1735687848148,-500.0,0.00011287,2]
[347322941,1735687848158,-500.0,0.00011287,2]
[347322942,1735687848167,-500.0,0.00011287,2]
[347322943,1735687848177,-500.0,0.00011287,2]
[347322944,1735687848187,-2116.44,0.00011287,2]
[347322945,1735687848196,-500.0,0.00011287,2]
[347322946,1735687848206,-500.0,0.00011287,2]
[347322947,1735687848215,-500.0,0.00011287,2]
[347322948,1735687848225,-500.0,0.00011287,2]
[347322949,1735687848234,-3260.22,0.00011287,2]
[347322950,1735687848243,-500.0,0.00011287,2]
[347322951,1735687848252,-1713.85,0.00011287,2]
[347322952,1735687848262,-1762.55,0.00011287,2]
[347322953,1735687848271,-500.0,0.00011287,2]
[347322954,1735687848280,-500.0,0.00011287,2]
[347322955,1735687848289,-671.67,0.00011287,2]
[347322956,1735687848299,-892.2,0.00011287,2]
[347322957,1735687848308,-500.0,0.00011287,2]
[347322958,1735687848317,-4198.33,0.00011287,2]
[347322959,1735687848326,-1549.56,0.00011287,2]
[347322960,1735687848336,-1557.45,0.00011287,2]
[347322961,1735687848345,-2035.03,0.00011287,2]
[347322962,1735687848354,-3217.39,0.00011287,2]
[347322963,1735687848364,-1508.09,0.00011287,2]
[347322964,1735687848373,-3895.61,0.00011287,2]
[347322965,1735687848382,-500.0,0.00011287,2]
[347322966,1735687848391,-500.0,0.00011287,2]
[347322967,1735687848401,-1088.07,0.00011287,2]
[347322968,1735687848410,-500.0,0.00011287,2]
[347322969,1735687848419,-1788.67,0.00011287,2]
[347322970,1735687848428,-736.72,0.00011287,2]
[347322971,1735687848437,-537.82310087,0.00011287,2]
[347322972,1735687848447,-1593.12,0.00011287,2]
[347322973,1735687848456,-500.0,0.00011287,2]
[347322974,1735687848464,-500.0,0.00011287,2]
[347322975,1735687848473,-1042.09,0.00011287,2]
[347322976,1735687848483,-500.0,0.00011287,2]
[347322977,1735687848492,-602.64,0.00011287,2]
[347322978,1735687848501,-5137.32,0.00011287,2]
[347322979,1735687848510,-500.0,0.00011287,2]
[347322980,1735687848519,-5840.19,0.00011287,2]
[347322981,1735687848528,-500.0,0.00011287,2]
[347322982,1735687848537,-523.28,0.00011287,2]
[347322983,1735687848546,-500.0,0.00011287,2]
[347322984,1735687848555,-566.87,0.00011287,2]
[347322985,1735687848564,-3260.41,0.00011287,2]
[347322986,1735687848573,-500.0,0.00011287,2]
[347322987,1735687848582,-500.0,0.00011287,2]
[347322988,1735687848592,-582.29,0.00011287,2]
[347322989,1735687848600,-500.0,0.00011287,2]
[347322990,1735687848610,-518.11,0.00011287,2]
[347322991,1735687848619,-1172.83,0.00011287,2]
[347322992,1735687848628,-500.0,0.00011287,2]
[347322993,1735687848638,-3294.44,0.00011287,2]
[347322994,1735687848647,-2786.05,0.00011287,2]
[347322995,1735687848656,-1057.65,0.00011287,2]
[347322996,1735687848666,-1676.73,0.00011287,2]
[347322997,1735687848680,-500.0,0.00011287,2]
[347322998,1735687848689,-500.0,0.00011287,2]
[347322999,1735687848699,-4127.58,0.00011287,2]
[347323000,1735687848708,-2273.66,0.00011287,2]
[347323001,1735687848718,-937.66,0.00011287,2]
[347323002,1735687848728,-1579.41,0.00011287,2]
[347323003,1735687848737,-5113.63,0.00011287,2]
[347323004,1735687848746,-4651.81,0.00011287,2]
[347323005,1735687848756,-733.5,0.00011287,2]
[347323006,1735687848765,-500.0,0.00011287,2]
[347323007,1735687848774,-899.55,0.00011287,2]
[347323008,1735687848783,-1056.03,0.00011287,2]
[347323009,1735687848794,-2194.2,0.00011287,2]
[347323010,1735687848804,-500.0,0.00011287,2]
[347323011,1735687848813,-679.83,0.00011287,2]
[347323012,1735687848822,-907.15,0.00011287,2]
[347323013,1735687848834,-1053.4,0.00011287,2]
[347323014,1735687848843,-792.21,0.00011287,2]
[347323015,1735687848853,-3830.77,0.00011287,2]
[347323016,1735687848861,-1384.46,0.00011287,2]
[347323017,1735687848871,-500.0,0.00011287,2]
[347323018,1735687848881,-1858.62,0.00011287,2]
[347323019,1735687848891,-4980.05,0.00011287,2]
[347323020,1735687848901,-1797.31,0.00011287,2]
[347323021,1735687848910,-3132.23,0.00011287,2]
[347323022,1735687848919,-1069.34,0.00011287,2]
[347323023,1735687848929,-500.0,0.00011287,2]
[347323024,1735687848938,-500.0,0.00011287,2]
[347323025,1735687848948,-1552.23,0.00011287,2]
[347323026,1735687848958,-500.0,0.00011287,2]
[347323027,1735687848967,-277.10652887,0.00011287,2]
[347323028,1735687848976,-1933.47,0.00011287,2]
[347323029,1735687848985,-1176.96,0.00011287,2]
[347323030,1735687848995,-2100.33,0.00011287,2]
[347323031,1735687849004,-500.0,0.00011287,2]
[347323032,1735687849013,-500.0,0.00011287,2]
[347323033,1735687849022,-777.4,0.00011287,2]
[347323034,1735687849031,-3360.52,0.00011287,2]
[347323035,1735687849041,-500.0,0.00011287,2]
[347323036,1735687849050,-500.0,0.00011287,2]
[347323037,1735687849059,-500.0,0.00011287,2]
[347323038,1735687849068,-2874.3,0.00011287,2]
[347323039,1735687849077,-500.0,0.00011287,2]
[347323040,1735687849086,-1868.97,0.00011287,2]
[347323041,1735687849096,-799.9,0.00011287,2]
[347323042,1735687849105,-1236.34,0.00011287,2]
[347323043,1735687849114,-500.0,0.00011287,2]
[347323044,1735687849208,-2870.2,0.00011287,2]
[347323045,1735687849217,-2723.37,0.00011287,2]
[347323046,1735687849226,-500.0,0.00011287,2]
[347323047,1735687849235,-500.0,0.00011287,2]
[347323048,1735687849244,-500.0,0.00011287,2]
[347323049,1735687849253,-500.0,0.00011287,2]
[347323050,1735687849262,-550.06,0.00011287,2]
[347323051,1735687849271,-500.0,0.00011287,2]
[347323052,1735687849279,-500.0,0.00011287,2]
[347323053,1735687849289,-959.61,0.00011287,2]
[347323054,1735687849298,-500.0,0.00011287,2]
[347323055,1735687849308,-500.0,0.00011287,2]
[347323056,1735687849317,-500.0,0.00011287,2]
[347323057,1735687849327,-500.0,0.00011287,2]
[347323058,1735687849336,-500.0,0.00011287,2]
[347323059,1735687849345,-500.0,0.00011287,2]
[347323060,1735687849354,-500.0,0.00011287,2]
[347323061,1735687849364,-500.0,0.00011287,2]
[347323062,1735687849373,-3552.87,0.00011287,2]
[347323063,1735687849382,-500.0,0.00011287,2]
[347323064,1735687849391,-536.76,0.00011287,2]
[347323065,1735687849400,-1187.8,0.00011287,2]
[347323066,1735687849410,-695.82,0.00011287,2]
[347323067,1735687849420,-500.0,0.00011287,2]
[347323068,1735687849430,-500.0,0.00011287,2]
[347323069,1735687849440,-884.11,0.00011287,2]
[347323070,1735687849449,-388.54947424,0.00011287,2]
[347323071,1735687849460,-925.65,0.00011287,2]
[347323072,1735687849470,-500.0,0.00011287,2]
[347323073,1735687849480,-2789.77,0.00011287,2]
[347323074,1735687849491,-844.41,0.00011287,2]
[347323075,1735687849502,-616.07,0.00011287,2]
[347323076,1735687849512,-500.0,0.00011287,2]
[347323077,1735687849522,-2586.56,0.00011287,2]
[347323078,1735687849533,-500.0,0.00011287,2]
[347323079,1735687849544,-1077.65,0.00011287,2]
[347323080,1735687849553,-1670.72,0.00011287,2]
[347323081,1735687849562,-500.0,0.00011287,2]
[347323082,1735687849571,-657.87,0.00011287,2]
[347323083,1735687849580,-546.31578893,0.00011287,2]
[347323084,1735687849590,-1272.64,0.00011287,2]
[347323085,1735687849599,-3263.76,0.00011287,2]
[347323086,1735687849608,-446.37643109,0.00011287,2]
[347323087,1735687849618,-500.0,0.00011287,2]
[347323088,1735687849627,-711.54,0.00011287,2]
[347323089,1735687849637,-500.0,0.00011287,2]
[347323090,1735687849647,-500.0,0.00011287,2]
[347323091,1735687849656,-5119.0,0.00011287,2]
[347323092,1735687849667,-500.0,0.00011287,2]
[347323093,1735687849683,-500.0,0.00011287,2]
[347323094,1735687849692,-500.0,0.00011287,2]
[347323095,1735687849701,-1641.94,0.00011287,2]
[347323096,1735687849711,-500.0,0.00011287,2]
[347323097,1735687849720,-2929.39,0.00011287,2]
[347323098,1735687849730,-2989.52,0.00011287,2]
[347323099,1735687849739,-500.0,0.00011287,2]
[347323100,1735687849750,-500.0,0.00011287,2]
[347323101,1735687849760,-1549.63,0.00011287,2]
[347323102,1735687849769,-2005.27,0.00011287,2]
[347323103,1735687849779,-500.0,0.00011287,2]
[347323104,1735687849788,-1812.53,0.00011287,2]
[347323105,1735687849797,-500.0,0.00011287,2]
[347323106,1735687849806,-1852.94,0.00011287,2]
[347323107,1735687849815,-500.0,0.00011287,2]
[347323108,1735687849824,-500.0,0.00011287,2]
[347323109,1735687849833,-501.77,0.00011287,2]
[347323110,1735687849842,-500.0,0.00011287,2]
[347323111,1735687849851,-500.0,0.00011287,2]
[347323112,1735687849860,-500.0,0.00011287,2]
[347323113,1735687849870,-500.0,0.00011287,2]
[347323114,1735687849879,-515.0919125,0.00011287,2]
[347323115,1735687849888,-3258.22,0.00011287,2]
[347323116,1735687849898,-1311.62,0.00011287,2]
[347323117,1735687849907,-710.22,0.00011287,2]
[347323118,1735687849917,-500.0,0.00011287,2]
[347323119,1735687849926,-1520.91,0.00011287,2]
[347323120,1735687849935,-500.0,0.00011287,2]
[347323121,1735687849944,-872.58,0.00011287,2]
[347323122,1735687849953,-500.0,0.00011287,2]
[347323123,1735687849962,-500.0,0.00011287,2]
[347323124,1735687849971,-500.0,0.00011287,2]
[347323125,1735687849981,-4512.3,0.00011287,2]
[347323126,1735687849990,-586.85,0.00011287,2]
[347323127,1735687849999,-1134.21,0.00011287,2]
[347323128,1735687850009,-1675.95,0.00011287,2]
[347323129,1735687850018,-500.0,0.00011287,2]
[347323130,1735687850027,-500.0,0.00011287,2]
[347323131,1735687850035,-1081.79,0.00011287,2]
[347323132,1735687850044,-500.0,0.00011287,2]
[347323133,1735687850053,-1171.91,0.00011287,2]
[347323134,1735687850062,-4602.12,0.00011287,2]
[347323135,1735687850071,-500.0,0.00011287,2]
[347323136,1735687850080,-500.0,0.00011287,2]
[347323137,1735687850089,-1092.36,0.00011287,2]
[347323138,1735687850098,-738.85,0.00011287,2]
[347323139,1735687850106,-3062.02,0.00011287,2]
[347323140,1735687850115,-500.0,0.00011287,2]
[347323141,1735687850124,-1370.22,0.00011287,2]
[347323142,1735687850133,-1068.3,0.00011287,2]
[347323143,1735687850143,-4216.48,0.00011287,2]
[347323144,1735687850152,-500.0,0.00011287,2]
[347323145,1735687850161,-928.66,0.00011287,2]
[347323146,1735687850170,-1029.54,0.00011287,2]
[347323147,1735687850179,-500.0,0.00011287,2]
[347323148,1735687850187,-500.0,0.00011287,2]
[347323149,1735687850197,-561.0,0.00011287,2]
[347323150,1735687850206,-1872.7,0.00011287,2]
[347323151,1735687850215,-913.38,0.00011287,2]
[347323152,1735687850224,-2928.32,0.00011287,2]
[347323153,1735687850233,-3978.05,0.00011287,2]
[347323154,1735687850243,-2569.4,0.00011287,2]
[347323155,1735687850252,-500.0,0.00011287,2]
[347323156,1735687850262,-500.0,0.00011287,2]
[347323157,1735687850271,-1664.71,0.00011287,2]
[347323158,1735687850281,-4202.14,0.00011287,2]
[347323159,1735687850290,-517.33,0.00011287,2]
[347323160,1735687850299,-1607.71,0.00011287,2]
[347323161,1735687850308,-500.0,0.00011287,2]
[347323162,1735687850317,-3258.79,0.00011287,2]
[347323163,1735687850327,-3309.93,0.00011287,2]
[347323164,1735687850336,-2970.92,0.00011287,2]
[347323165,1735687850345,-500.0,0.00011287,2]
[347323166,1735687850354,-500.0,0.00011287,2]
[347323167,1735687850364,-684.15,0.00011287,2]
[347323168,1735687850373,-594.83,0.00011287,2]
[347323169,1735687850383,-500.0,0.00011287,2]
[347323170,1735687850392,-500.0,0.00011287,2]
[347323171,1735687850401,-1704.31,0.00011287,2]
[347323172,1735687850411,-500.0,0.00011287,2]
[347323173,1735687850419,-358.71757189,0.00011287,2]
[347323174,1735687850428,-1238.15,0.00011287,2]
[347323175,1735687850437,-500.0,0.00011287,2]
[347323176,1735687850447,-500.0,0.00011287,2]
[347323177,1735687850456,-500.0,0.00011287,2]
[347323178,1735687850465,-500.0,0.00011287,2]
[347323179,1735687850475,-500.0,0.00011287,2]
[347323180,1735687850483,-500.0,0.00011287,2]
[347323181,1735687850493,-4054.6,0.00011287,2]
[347323182,1735687850502,-2193.82,0.00011287,2]
[347323183,1735687850510,-2831.95,0.00011287,2]
[347323184,1735687850519,-1138.7,0.00011287,2]
[347323185,1735687850528,-1070.89,0.00011287,2]
[347323186,1735687850537,-500.0,0.00011287,2]
[347323187,1735687850546,-500.0,0.00011287,2]
[347323188,1735687850555,-500.0,0.00011287,2]
[347323189,1735687850564,-500.0,0.00011287,2]
[347323190,1735687850573,-500.0,0.00011287,2]
[347323191,1735687850582,-500.0,0.00011287,2]
[347323192,1735687850591,-500.0,0.00011287,2]
[347323193,1735687850600,-500.0,0.00011287,2]
[347323194,1735687850609,-2709.9,0.00011287,2]
[347323195,1735687850618,-866.27,0.00011287,2]
[347323196,1735687850628,-915.38,0.00011287,2]
[347323197,1735687850638,-500.0,0.00011287,2]
[347323198,1735687850648,-17182.82,0.00011287,2]
[347323199,1735687850658,-1189.47,0.00011287,2]
[347323200,1735687850668,-339.0,0.00011288,2]
[347323201,1735687850682,-29097.76592167,0.00011288,2]
[347323202,1735687851512,-490.44403302,0.00011288,2]
[347323203,1735687852906,-500.0,0.00011286,2]
[347323204,1735687852916,-1603.67512255,0.00011288,2]
[347323205,1735687852927,-9383.3,0.00011288,2]
[347323206,1735687852952,-500.0,0.00011287,2]
[347323207,1735687852962,-3585.99495546,0.00011288,2]
[347323208,1735687852972,-1522.9792,0.00011288,2]
[347323209,1735687853129,-2813.21389215,0.00011288,2]
[347323210,1735687881062,183.337,0.0001092,2]
[347323211,1735687956413,250.0,0.00010395,2]
[347323212,1735687969105,1791.25,0.00010383,2]
[347323213,1735687979704,1989.74,0.00010383,2]
[347323214,1735687993266,151.11669566,0.0001,2]
[347323215,1735688013757,1825.23,0.00010888,6]
[347323216,1735688022467,11527.3,0.00010888,6]
[347323217,1735688164591,1122.07,8.472e-05,2]
[347323218,1735688164829,1122.07,0.00010736,2]
[347323219,1735688383255,250.0,0.00010381,2]
[347323220,1735688507361,578.66,0.00010357,2]
[347323221,1735688568280,175.756,0.0001092,2]
[347323222,1735688590960,1000.0,0.00010366,2]
[347323223,1735688659372,150.010108,0.0002,120]
[347323224,1735688659987,150.010108,0.0002,120]
[347323225,1735688660778,150.010108,0.0002,120]
[347323226,1735688661361,150.010108,0.0002,120]
[347323227,1735688661871,150.010108,0.0002,120]
[347323228,1735688662408,150.010108,0.0002,120]
[347323229,1735688662906,150.010108,0.0002,120]
[347323230,1735688663417,150.010108,0.0002,120]
[347323231,1735688663954,150.010108,0.0002,120]
[347323232,1735688664524,150.010108,0.0002,120]
[347323233,1735688665019,150.010108,0.0002,120]
[347323234,1735688665556,150.010108,0.0002,120]
[347323235,1735688666106,150.010108,0.0002,120]
[347323236,1735688666684,150.010108,0.0002,120]
[347323237,1735688667168,150.010108,0.0002,120]
[347323238,1735688678875,150.010108,0.0002,120]
[347323239,1735688711921,150.0,0.00010332,2]
[347323240,1735688714681,150.0,0.00010332,2]
[347323241,1735688788277,23103.12039361,0.00011,2]
[347323242,1735688902212,247.71,0.00010137,2]
[347323251,1735689032031,-163.01216866,0.00011183,2]
[347323252,1735689032040,-1692.00674579,0.00011183,2]
[347323253,1735689032125,-363.78705421,0.00011183,2]
[347323254,1735689032135,-150.0,0.0001126,2]
[347323255,1735689032144,-36.84147315,0.00011273,2]
[347323256,1735689032156,-336.5862505,0.00011273,2]
[347323257,1735689032168,-117.01630937,0.00011273,2]
[347323258,1735689032178,-507.87,0.00011276,2]
[347323259,1735689032188,-1948.86451609,0.00011278,2]
[347323260,1735689032198,-300.0,0.00011281,2]
[347323261,1735689032208,-800.54,0.00011282,2]
[347323262,1735689032218,-1308.3,0.00011282,2]
[347323263,1735689032228,-500.0,0.00011282,2]
[347323264,1735689032237,-1844.85,0.00011282,2]
[347323265,1735689032247,-500.0,0.00011282,2]
[347323266,1735689032257,-2743.48,0.00011282,2]
[347323267,1735689032266,-1184.9,0.00011282,2]
[347323268,1735689032276,-1467.56,0.00011282,2]
[347323269,1735689032286,-500.0,0.00011282,2]
[347323270,1735689032295,-776.03,0.00011282,2]
[347323271,1735689032306,-1788.6,0.00011282,2]
[347323272,1735689032316,-799.41,0.00011282,2]
[347323273,1735689032325,-592.08,0.00011282,2]
[347323274,1735689032335,-500.0,0.00011282,2]
[347323275,1735689032344,-500.0,0.00011282,2]
[347323276,1735689032353,-500.0,0.00011282,2]
[347323277,1735689032363,-500.0,0.00011282,2]
[347323278,1735689032374,-540.99095293,0.00011282,2]
[347323279,1735689032383,-500.0,0.00011282,2]
[347323280,1735689032393,-1059.39,0.00011282,2]
[347323281,1735689032403,-500.0,0.00011282,2]
[347323282,1735689032412,-500.0,0.00011282,2]
[347323283,1735689032421,-2044.23,0.00011282,2]
[347323284,1735689032431,-500.0,0.00011282,2]
[347323285,1735689032441,-500.0,0.00011282,2]
[347323286,1735689032451,-1601.67,0.00011282,2]
[347323287,1735689032460,-2070.87,0.00011282,2]
[347323288,1735689032470,-500.0,0.00011282,2]
[347323289,1735689032480,-2346.31,0.00011282,2]
[347323290,1735689032489,-2304.83,0.00011282,2]
[347323291,1735689032499,-1035.22,0.00011282,2]
[347323292,1735689032509,-984.38,0.00011282,2]
[347323293,1735689032518,-983.45,0.00011282,2]
[347323294,1735689032528,-1160.41,0.00011282,2]
[347323295,1735689032537,-629.47,0.00011282,2]
[347323296,1735689032547,-1302.2,0.00011282,2]
[347323297,1735689032556,-500.0,0.00011282,2]
[347323298,1735689032565,-500.0,0.00011282,2]
[347323299,1735689032575,-500.0,0.00011282,2]
[347323300,1735689032585,-500.0,0.00011282,2]
[347323301,1735689032594,-1013.48,0.00011282,2]
[347323302,1735689032603,-1583.34,0.00011282,2]
[347323303,1735689032612,-500.0,0.00011282,2]
[347323304,1735689032624,-915.54,0.00011282,2]
[347323305,1735689032634,-2384.8,0.00011282,2]
[347323306,1735689032644,-500.0,0.00011282,2]
[347323307,1735689032653,-500.0,0.00011282,2]
[347323308,1735689032663,-513.95,0.00011282,2]
[347323309,1735689032672,-2003.55,0.00011282,2]
[347323310,1735689032682,-500.0,0.00011282,2]
[347323311,1735689032691,-500.0,0.00011282,2]
[347323312,1735689032701,-2606.11,0.00011282,2]
[347323313,1735689032711,-500.0,0.00011282,2]
[347323314,1735689032721,-500.0,0.00011282,2]
[347323315,1735689032730,-500.0,0.00011282,2]
[347323316,1735689032740,-500.0,0.00011282,2]
[347323317,1735689032750,-500.0,0.00011282,2]
[347323318,1735689032760,-627.1,0.00011282,2]
[347323319,1735689032769,-500.0,0.00011282,2]
[347323320,1735689032778,-529.96,0.00011282,2]
[347323321,1735689032788,-566.06,0.00011282,2]
[347323322,1735689032798,-500.0,0.00011282,2]
[347323323,1735689032807,-500.0,0.00011282,2]
[347323324,1735689032817,-500.0,0.00011282,2]
[347323325,1735689032826,-1369.25,0.00011282,2]
[347323326,1735689032835,-500.0,0.00011282,2]
[347323327,1735689032844,-1564.4,0.00011282,2]
[347323328,1735689032853,-500.0,0.00011282,2]
[347323329,1735689032863,-644.83,0.00011282,2]
[347323330,1735689032873,-1310.76,0.00011282,2]
[347323331,1735689032882,-1962.21,0.00011282,2]
[347323332,1735689032891,-739.43,0.00011282,2]
[347323333,1735689032900,-500.0,0.00011282,2]
[347323334,1735689032909,-500.0,0.00011282,2]
[347323335,1735689032918,-2960.81,0.00011282,2]
[347323336,1735689032928,-978.13,0.00011282,2]
[347323337,1735689032937,-1069.64,0.00011282,2]
[347323338,1735689032947,-500.0,0.00011282,2]
[347323339,1735689032956,-1077.39,0.00011282,2]
[347323340,1735689032966,-500.0,0.00011282,2]
[347323341,1735689032975,-1682.33,0.00011282,2]
[347323342,1735689032984,-884.54,0.00011282,2]
[347323343,1735689032994,-500.0,0.00011282,2]
[347323344,1735689033004,-500.0,0.00011282,2]
[347323345,1735689033013,-2563.96,0.00011282,2]
[347323346,1735689033023,-500.0,0.00011282,2]
[347323347,1735689033032,-890.78,0.00011282,2]